Cogmind - Beta 10.2 @@@ ROGUE MODE // 2021.07.01 @ 13:06:51 Player: Mares Result: Destroyed by as-30364 with Assembled Focal Cannon Performance ------------- Evolutions (4) 2000 Regions Visited (20) 4000 Robots Destroyed (250) 1250 Value Destroyed (7072) 7072 Prototype IDs (37) 740 Alien Tech Used (0) 0 Bonus (-2706) -2706 TOTAL SCORE: 12356 Bonus ------- High Alert Combat Kills 837 Follower Combat Kills 1743 Met Data Miner 300 Destroyed Z-Imprinter 1000 Friendly Fire -6586 Cogmind --------- Core Integrity 0/850 Matter 280/300 Energy 186/310 System Corruption 0% Temperature Cool (59) Movement Treading (165) Ox1 Location -6/Deep Caves Parts ------- > --- POWER (1) -------- Fission Core > --- PROPULSION (3) --- Advanced Treads Advanced Treads Advanced Treads > --- UTILITY (8) ------ Experimental Sensor Array Improved Signal Interpreter Experimental Targeting Computer Improved Heavy Armor Plating Damper Plating > --- WEAPON (3) ------- Heavy EM Shotgun 01-MTF's Shockpuncher Improved EM Pulse Cannon > --- INVENTORY (4) ---- Improved Particle Charger Heavy Beamcaster Shock Bomb Launcher Plasma Cutter Peak State ------------ > --- POWER ------------ Micro Nuclear Core > --- PROPULSION ------- Enhanced Flexi-carbon Leg Enhanced Flexi-carbon Leg Enhanced Flexi-carbon Leg > --- UTILITY ---------- High-capacity Storage Unit High-capacity Storage Unit High-capacity Storage Unit Experimental Sensor Array Improved Signal Interpreter Experimental Targeting Computer Experimental Targeting Computer Hacking Suite > --- WEAPON ----------- Zionite Laser-M Great Maul Power Sword > --- INVENTORY -------- Fission Core Experimental Heat Sink Experimental Heat Sink Improved Energy Well Matter Compressor Zionite Metafield Generator Improved Particle Charger Advanced Reaction Control System Advanced Phase Shifter Improved Light Armor Plating Improved Heavy Armor Plating Centrium Light Armor Plating Damper Plating Advanced Thermal Shield System Mapper System Shield Makeshift System Shield Mobile Refinery Mk. CCLXVII Heavy EM Shotgun 01-MTF's Shockpuncher Heavy Beamcaster Improved EM Pulse Cannon Shock Bomb Launcher Plasma Cutter CR-A16's Pointy Stick [Rating: 83] Favorites ----------- Power Antimatter Reactor Engine Heavy Ion Engine Power Core Light Nuclear Core Reactor Antimatter Reactor Propulsion Light Treads Treads Light Treads Leg Enhanced Flexi-carbon Leg Wheel Armored Huge Wheel Hover Unit Cooled Airjet Utility High-capacity Storage Unit Device Experimental Sensor Array Storage High-capacity Storage Unit Processor Experimental Targeting Computer Hackware Hacking Suite Protection Improved Light Armor Plating Weapon Minigun Energy Gun EM Pulse Gun Energy Cannon Plasma Cannon Ballistic Gun Minigun Ballistic Cannon Bore Cannon Launcher Advanced EMP Blaster Special Weapon Plasma Cutter Impact Weapon Great Maul Slashing Weapon Power Sword Piercing Weapon Spear Build | -11 -10 -10 -9 -9 -9 -8 -8 -8 -7 -7 -7 -7 -7 -7 -6 -6 -6 -6 -6 -6 ------- Run | Scr Mat Min Mat Min Exi Min Mat Sto Fac Was Fac Low Low Dat Pro Fac Low Low Zio Dee Slots Evolved 8 | . . . 2 . . . 2 . 2 . . . . . . 2 . . . . Power . | . . . . . . . . . . . . . . . . . . . . . Propulsion 1 | . . . . . . . 1 . . . . . . . . . . . . . Utility 6 | . . . 1 . . . 1 . 2 . . . . . . 2 . . . . Weapon 1 | . . . 1 . . . . . . . . . . . . . . . . . Parts Attached 288 | 6 10 10 34 . . . 18 34 7 7 8 1 . 11 19 55 6 1 23 38 Power 18 | 1 1 1 2 . . . 1 1 . 2 . . . 2 . 3 . . 1 3 Engine 9 | 1 . 1 2 . . . 1 1 . 1 . . . . . 1 . . 1 . Core 3 | . 1 . . . . . . . . . . . . . . . . . . 2 Reactor 6 | . . . . . . . . . . 1 . . . 2 . 2 . . . 1 Propulsion 51 | 2 1 1 4 . . . 6 5 1 2 5 1 . . 3 12 . . . 8 Treads 34 | 2 . . 3 . . . 6 4 . 1 2 1 . . 3 8 . . . 4 Leg 7 | . . . . . . . . . . . . . . . . 3 . . . 4 Wheel 5 | . 1 1 . . . . . . 1 1 . . . . . 1 . . . . Hover 5 | . . . 1 . . . . 1 . . 3 . . . . . . . . . Flight . | . . . . . . . . . . . . . . . . . . . . . Utility 94 | 1 3 . 3 . . . 5 11 3 2 3 . . 4 6 24 2 . 12 15 Device 29 | . . . . . . . . 5 1 . 2 . . 1 1 8 1 . 4 6 Storage 18 | 1 3 . . . . . . 3 . . . . . 3 . 2 . . 5 1 Processor 8 | . . . . . . . . . 2 1 . . . . . 3 . . 1 1 Hackware 4 | . . . . . . . . . . . 1 . . . . 1 . . . 2 Protection 35 | . . . 3 . . . 5 3 . 1 . . . . 5 10 1 . 2 5 Artifact . | . . . . . . . . . . . . . . . . . . . . . Weapon 125 | 2 5 8 25 . . . 6 17 3 1 . . . 5 10 16 4 1 10 12 Energy Gun 32 | 1 3 6 6 . . . 1 4 . 1 . . . 1 2 . . . 1 6 Energy Cannon 10 | . . . 3 . . . 1 1 . . . . . 1 1 2 . . . 1 Ballistic Gun 40 | 1 . . 11 . . . 2 6 1 . . . . 1 4 9 1 1 3 . Ballistic Cannon 1 | . . . . . . . . . . . . . . . . . . . . 1 Launcher 22 | . 2 2 2 . . . 1 3 1 . . . . 1 3 3 2 . 1 1 Special Weapon 6 | . . . 3 . . . . 2 . . . . . . . . . . . 1 Impact Weapon 8 | . . . . . . . . 1 1 . . . . . . 1 1 . 3 1 Slashing Weapon 4 | . . . . . . . 1 . . . . . . . . 1 . . 1 1 Piercing Weapon 2 | . . . . . . . . . . . . . . 1 . . . . 1 . Special Melee Weapon . | . . . . . . . . . . . . . . . . . . . . . Unidentified Prototypes 26 | . . . 3 . . . . 13 . 1 2 . . . . 2 . . 1 4 Parts Lost 36 | . 1 7 1 . . . 3 1 . . . . . . 5 6 4 . . 8 Power 4 | . . 1 . . . . . . . . . . . . . 2 . . . 1 Propulsion 8 | . 1 2 1 . . . . 1 . . . . . . 1 1 . . . 1 Utility 7 | . . . . . . . 1 . . . . . . . 3 1 1 . . 1 Weapon 17 | . . 4 . . . . 2 . . . . . . . 1 2 3 . . 5 Highest Loss Streak 8 | . 1 4 1 . . . 2 1 . . . . . . 3 2 4 . . 8 Average Slot Usage (%) 90 | . 99 87 95 100 100 100 97 99 87 91 92 92 92 77 89 96 99 100 70 95 Engine 5 | . 12 10 11 11 11 11 9 9 7 1 . . . . . . 6 6 2 1 Reactor 1 | . . . . . . . . . . 5 7 7 7 6 7 5 . . . 2 Treads 17 | . 26 1 20 22 22 22 26 26 11 7 6 3 7 7 12 18 20 20 20 14 Wheel 2 | . 1 15 . . . . . . 4 7 7 7 7 7 4 . . . . . Device 2 | . . . . . . . . . 7 7 7 7 7 5 3 4 5 6 2 6 Storage 20 | . 27 28 22 22 22 22 18 22 23 23 23 23 23 18 23 20 20 20 11 20 Processor 5 | . . . . . . . . . . 6 7 7 7 7 2 6 13 13 13 13 Hackware 2 | . . . . . . . . . . . 4 7 7 7 2 4 6 6 6 5 Protection 6 | . . . 9 11 11 11 15 13 7 7 2 . . . 10 13 6 6 . 2 Energy Gun 5 | . 23 27 3 . . . . 6 7 6 7 7 7 2 2 . . . . 4 Energy Cannon 1 | . . . 2 . . . 2 1 . . . . . . 4 3 . . . . Ballistic Gun 10 | . 3 . 23 33 33 33 22 11 12 7 7 7 7 2 9 14 5 6 2 3 Launcher 2 | . 1 . . . . . 1 2 1 7 7 7 7 4 2 1 6 6 2 1 Impact Weapon 1 | . . . . . . . . . . . . . . . . . 5 6 4 3 Naked Turns . | . . . . . . . . . . . . . . . . . . . . . Heaviest Build 156 | 13 74 75 88 84 84 84 95 118 124 135 132 127 127 128 141 141 125 125 155 156 Greatest Support 90 | 40 40 26 40 40 40 40 60 60 60 28 28 28 28 28 80 90 66 66 66 84 Greatest Overweight (x) 48 | . 7 7 7 2 2 2 4 2 4 6 6 4 4 4 6 8 1 1 2 48 Average Overweight (x) 2 | . 1 6 2 2 2 2 1 1 3 4 4 4 4 2 3 1 1 1 1 1 Largest Inventory Capacity 36 | 6 20 20 20 20 20 20 20 28 28 28 28 28 28 28 28 28 28 28 36 36 Average Capacity 23 | 5 18 20 20 20 20 20 20 23 28 28 28 28 28 23 28 28 28 28 18 29 Most Carried 36 | 6 20 19 20 20 20 20 20 28 27 28 28 28 28 28 28 28 28 28 36 36 Average Carried 22 | 3 16 17 19 19 20 20 19 23 26 27 27 27 28 17 27 27 27 28 17 27 Final Capacity 36 | 6 20 20 20 20 20 20 20 28 28 28 28 28 28 28 28 28 28 28 36 4 Final Carried 36 | 6 18 18 20 20 20 20 19 27 27 28 28 28 28 28 28 28 28 28 36 4 Class Distribution -------------------- 44% | Hauler-Mutant 17% | Hauler-Tank 10% | Mutant 7% | Commander-Tank 5% | Scavenger-Tank 4% | Hauler-Skirmisher 4% | Scavenger-Mutant Dominant Class ---------------- Hauler-Mutant | -10/Materials Hauler-Mutant | -10/Mines Hauler-Tank | -9/Materials Hauler-Tank | -9/Mines Hauler-Tank | -9/Exiles Hauler-Tank | -8/Mines Hauler-Tank | -8/Materials Commander-Tank | -8/Storage Commander-Tank | -7/Factory Hauler-Mutant | -7/Waste Hauler-Mutant | -7/Factory Hauler-Mutant | -7/Lower Caves Hauler-Mutant | -7/Lower Caves Hauler-Mutant | -7/Data Miner Hauler-Mutant | -6/Proximity Caves Scavenger-Tank | -6/Factory Hauler-Mutant | -6/Lower Caves Hauler-Mutant | -6/Lower Caves Mutant | -6/Zion Hauler-Mutant | -6/Deep Caves Resources | -11 -10 -10 -9 -9 -9 -8 -8 -8 -7 -7 -7 -7 -7 -7 -6 -6 -6 -6 -6 -6 ----------- Run | Scr Mat Min Mat Min Exi Min Mat Sto Fac Was Fac Low Low Dat Pro Fac Low Low Zio Dee Matter Collected 7172 | 275 300 248 967 184 . 43 811 589 251 106 41 111 32 132 319 1392 506 38 234 593 Remotely 181 | . . . . . . . . . . . . . . . . 181 . . . . Salvage Created 11552 | 78 543 255 1900 280 . 43 993 1557 374 239 . 437 138 471 680 2572 619 59 . 314 Parts 541 | . 41 13 132 23 . 1 50 71 13 6 . 17 4 10 32 93 18 . . 17 Haulers Intercepted 13 | . 2 . 5 . . . . 4 . . . . . . . 2 . . . . Recyclers Shooed 3 | . . . 1 . . . . 1 . . . . . . . 1 . . . . Parts Field Recycled . | . . . . . . . . . . . . . . . . . . . . . Retrieved Matter . | . . . . . . . . . . . . . . . . . . . . . Parts Self-Destructed 21 | . . . . . . . . . . . . 9 6 . 6 . . . . . Prevented 31 | . . . . . . . . . . . . 7 5 . 14 . 5 . . . Kills | -11 -10 -10 -9 -9 -9 -8 -8 -8 -7 -7 -7 -7 -7 -7 -6 -6 -6 -6 -6 -6 ------- Run | Scr Mat Min Mat Min Exi Min Mat Sto Fac Was Fac Low Low Dat Pro Fac Low Low Zio Dee Combat Hostiles Destroyed 180 | . 15 14 35 11 . 3 23 16 3 . . 3 3 2 12 26 8 . . 6 Melee 1 | . . . . . . . . . . . . . . . . . . . . 1 Guns 87 | . 9 8 20 11 . 3 15 3 3 . . . . . 3 9 1 . . 2 Cannons 19 | . . . 7 . . . 5 . . . . . . . 1 6 . . . . AOE 60 | . 6 5 8 . . . 3 12 . . . 2 2 . 6 8 5 . . 3 Classes Destroyed 22 | 1 6 1 4 . . . 1 2 . . . 2 . . 1 1 1 1 . 1 Worker 9 | . 2 1 3 . . . . 3 . . . . . . . . . . . . Builder 6 | . 1 . . . . . . 1 . . . . . . . 4 . . . . Tunneler 2 | . . . 1 1 . . . . . . . . . . . . . . . . Hauler 13 | . 2 . 5 . . . . 4 . . . . . . . 2 . . . . Recycler 18 | 1 . . 3 . . . 1 4 3 . . . . . . 6 . . . . Mechanic 1 | . . . . . . . . 1 . . . . . . . . . . . . Operator 4 | . . . 2 . . . . 2 . . . . . . . . . . . . Watcher 11 | . 3 . 4 . . . . . 1 . . . . . . 3 . . . . Swarmer 51 | . 6 6 10 8 . 3 7 1 1 . . . 1 . 8 . . . . . Grunt 80 | . 9 2 15 3 . . 8 12 2 1 . 4 2 3 2 14 3 . . . Brawler 4 | . . . . . . . 1 . . . . . . . 1 1 1 . . . Duelist 1 | . . . 1 . . . . . . . . . . . . . . . . . Sentry 21 | . . . 9 . . . 7 2 . . . . . . . 3 . . . . Hunter 3 | . . . . . . . . 1 . . . . . . . 2 . . . . Programmer 6 | . . . . . . . . . . . . . . . . 6 . . . . Behemoth 1 | . . . . . . . . . . . . . . . 1 . . . . . Enhanced Grunt 2 | . . . . . . . . . . . . . . 2 . . . . . . Z-Light 2 | . . . . . . . . . . . . . . . . . . . . 2 Decomposer 1 | . . . . . . . . . . . . . . . . . 1 . . . Samaritan 4 | . . . . . . . . . . . . 1 . . . . 2 1 . . Tinkerer 1 | . . . . . . . . . . . . . . . . . . 1 . . Assembled 9 | . . 6 . . . . . . . . . . . . . . . . . 3 Surgeon 3 | . . . . . . . . . . . . . . . 3 . . . . . Thug 4 | . . . . . . . . . . . . 2 . 1 . . 1 . . . Savage 1 | . . . . . . . . . . . . . . . . . . . . 1 Martyr 1 | . . . . . . . . . . . . 1 . . . . . . . . Fireman 3 | . . . . . . . . . . . . . . . . . 3 . . . Best Kill Streak 15 | 1 6 4 10 4 . 3 7 15 2 . . 2 2 3 3 7 4 . . 2 Combat Bots Only 9 | . 6 4 9 4 . 3 7 5 2 . . 2 2 2 3 6 4 . . 2 Max Kills in Single Turn 3 | 1 2 3 3 1 . 2 2 2 2 1 . 3 1 2 2 3 2 1 . 1 Gunslinging 1 | . . . . . . 1 . . . . . . . . . . . . . . Exploded 3 | . 2 3 2 . . . 2 2 . . . 1 1 . 2 2 2 . . 1 Melee 1 | . . . . . . . . . . . . . . . . . . . . 1 Uniques/NPCs Destroyed 3 | . . . . . . . . 1 . . . . . 1 . . . . . 1 01-MTF (-8/Storage) Data Miner (-7/Data Miner) Z-Imprinter (-6/Deep Caves) Combat | -11 -10 -10 -9 -9 -9 -8 -8 -8 -7 -7 -7 -7 -7 -7 -6 -6 -6 -6 -6 -6 -------- Run | Scr Mat Min Mat Min Exi Min Mat Sto Fac Was Fac Low Low Dat Pro Fac Low Low Zio Dee Damage Taken 11047 | . 638 530 1032 161 . 15 1169 661 125 . 23 96 174 164 1121 2195 505 . . 2438 Core 1603 | . 110 78 185 18 . . 82 95 . . . 15 28 24 93 196 76 . . 603 Absorbed by Shields 70 | . . . . . . . . . . . . . . . . 70 . . . . Core Remaining (%) 63 | 100 . 24 . . . 49 . 67 . . . . . . 77 . . . . . Volleys Fired 599 | 5 42 35 96 16 . 3 69 80 16 9 2 17 5 8 44 118 14 . . 20 Largest 3 | 2 2 2 3 3 . 3 3 3 3 2 2 2 2 1 3 3 2 . . 3 Hottest 186 | 70 80 90 139 75 . 75 128 128 111 86 106 106 106 36 186 145 66 . . 169 Shots Fired 1305 | 10 75 63 249 48 . 9 188 142 39 18 4 29 6 8 75 284 16 . . 42 Gun 1002 | 10 66 60 194 48 . 9 158 80 37 18 4 24 2 . 46 214 4 . . 28 Cannon 159 | . . . 44 . . . 27 7 . . . . . . 18 52 . . . 11 Launcher 103 | . 9 3 5 . . . 3 20 2 . . 5 4 8 11 18 12 . . 3 Special 41 | . . . 6 . . . . 35 . . . . . . . . . . . . Kinetic 788 | 5 18 . 171 48 . 9 157 53 23 9 2 12 1 . 32 214 4 . . 30 Thermal 280 | 5 18 . 53 . . . 27 62 14 9 2 12 1 . 19 52 . . . 6 Explosive 23 | . 9 3 5 . . . 3 3 . . . . . . . . . . . . Electromagnetic 214 | . 30 60 20 . . . 1 24 2 . . 5 4 8 24 18 12 . . 6 Robot Hit Streak 24 | 2 8 6 24 7 . 4 12 15 4 5 3 3 1 6 11 19 8 . . 5 Robot Miss Streak 7 | 2 3 3 7 4 . 3 5 4 4 2 1 2 1 . 3 3 1 . . 5 Penetration Max 1 | . . . . . . . . . . . . . . . . . . . . 1 Secondary Targets 9 | . . . . 3 . 1 1 . 2 . . . . . . 2 . . . . Max Gunslinging Chain 1 | . . . . 1 . 1 1 . 1 . . . . . . 1 . . . . Shots Hit Robots 822 | 5 53 38 163 22 . 4 118 80 19 12 3 16 2 6 47 193 14 2 . 25 Core Hits 424 | 2 35 19 76 13 . 3 39 53 11 4 . 14 4 14 23 84 14 . . 16 Critical Hits 21 | . 1 . 2 . . . . 6 1 . . . . . 2 4 . . . 5 Critical Kills 3 | . . . 1 . . . . . . . . . . . . 1 . . . 1 Critical Parts Destroyed 9 | . 1 . 1 . . . . 1 1 . . . . . 1 2 . . . 2 Melee Attacks 222 | . . . . . . . 3 5 1 . . . . 1 . 1 5 6 181 19 Impact 179 | . . . . . . . . 5 1 . . . . . . . 5 6 158 4 Slashing 42 | . . . . . . . 3 . . . . . . . . 1 . . 23 15 Piercing 1 | . . . . . . . . . . . . . . 1 . . . . . . Sneak Attacks 8 | . . . . . . . 1 1 . . . . . 1 . . 3 2 . . Combat Hostiles . | . . . . . . . . . . . . . . . . . . . . . Follow-up Attacks . | . . . . . . . . . . . . . . . . . . . . . Damage Inflicted 24623 | 62 1326 658 3133 464 . 69 2231 3266 578 266 131 1325 276 1143 1655 5895 1149 165 . 831 Guns 10685 | 62 578 394 1919 464 . 69 1440 915 363 266 85 284 . . 575 2721 56 . . 494 Cannons 2683 | . . . 529 . . . 456 114 . . . . . . 224 1217 . . . 143 Explosions 10163 | . 741 264 642 . . . 207 2027 215 . . 1041 276 1035 856 1957 841 . . 61 Melee 855 | . . . . . . . 128 69 . . . . . 108 . . 252 165 . 133 Ramming 53 | . 7 . . . . . . . . . 46 . . . . . . . . . Kinetic 8440 | 13 171 . 1741 464 . 69 1425 559 123 126 37 123 . . 331 2721 56 . . 481 Thermal 5707 | 49 234 32 586 . . . 456 683 255 140 48 356 . 124 387 2134 108 . . 115 Explosive 1904 | . 657 232 642 . . . 207 166 . . . . . . . . . . . . Electromagnetic 7664 | . 257 394 164 . . . 15 1789 200 . . 846 276 911 937 1040 733 . . 102 Impact 510 | . . . . . . . . 69 . . . . . . . . 252 165 . 24 Slashing 237 | . . . . . . . 128 . . . . . . . . . . . . 109 Piercing 108 | . . . . . . . . . . . . . . 108 . . . . . . Highest Corruption 14 | . . 7 . . . . . 5 . . 2 3 3 3 12 7 14 14 14 . Average Corruption 6 | . . 6 . . . . . 5 . . 2 2 3 3 9 3 13 14 14 . Corruption Purged . | . . . . . . . . . . . . . . . . . . . . . Effects 273 | . . 31 . . . . . 55 . . . 11 8 9 54 27 42 24 12 . Message Errors 57 | . . 11 . . . . . 14 . . . 5 3 2 7 3 6 3 3 . Matter Fused 64 | . . 8 . . . . . 12 . . . . 1 3 9 7 16 7 1 . Heat Flow Errors 25 | . . 3 . . . . . 5 . . . 1 2 . 5 2 2 2 3 . Energy Discharges 29 | . . 5 . . . . . 8 . . . 1 1 2 5 2 2 2 1 . Data Loss (minor) 28 | . . 2 . . . . . 4 . . . 3 1 2 5 3 4 2 2 . Data Loss (major) 9 | . . . . . . . . 1 . . . . . . 3 1 2 2 . . Misfires 6 | . . . . . . . . 1 . . . . . . 2 1 2 . . . Alerts 3 | . . . . . . . . . . . . . . . 1 . 1 1 . . Misdirections 20 | . . . . . . . . . . . . . . . 9 . 4 5 2 . Targeting Errors 29 | . . 2 . . . . . 10 . . . 1 . . 8 6 2 . . . Weapon Failures 3 | . . . . . . . . . . . . . . . . 2 1 . . . Overload Shots . | . . . . . . . . . . . . . . . . . . . . . Overflow Damage 1045 | . 31 6 29 . . . 58 111 . . 24 6 . 45 58 279 262 136 . . Projectiles 102 | . . . 7 . . . . . . . . . . . 13 82 . . . . Explosions 436 | . 31 6 22 . . . . 62 . . . 6 . 45 45 197 22 . . . Melee 507 | . . . . . . . 58 49 . . 24 . . . . . 240 136 . . Knockbacks 3 | . . . . . . . . . . . . . . . . . . . . 3 Impact 1 | . . . . . . . . . . . . . . . . . . . . 1 Kinetic 2 | . . . . . . . . . . . . . . . . . . . . 2 Secondary . | . . . . . . . . . . . . . . . . . . . . . Self-Inflicted Damage 787 | . 30 60 51 . . . 34 94 . . 23 48 . 24 119 175 129 . . . Shots 37 | . 3 2 4 . . . 2 4 . . . 2 . 1 5 6 8 . . . Rammed 4 | . 2 . . . . . . . 1 . 1 . . . . . . . . . Targets Rammed 4 | . 2 . . . . . . . 1 . 1 . . . . . . . . . Kicked . | . . . . . . . . . . . . . . . . . . . . . Crushed . | . . . . . . . . . . . . . . . . . . . . . Highest Temperature 515 | 27 141 222 350 130 . 62 479 297 180 124 66 214 201 . 515 363 104 186 250 513 Average Temperature 99 | 15 35 70 82 55 . 32 139 88 55 45 35 62 69 . 161 121 29 85 106 182 Received Heat Transfer 2680 | . 162 60 285 15 . . 396 135 36 . . 27 54 18 117 471 179 . . 725 Effects 21 | . . 1 3 . . . 1 . . . . . . . 2 10 . . . 4 Shutdowns 6 | . . . 1 . . . . . . . . . . . 1 2 . . . 2 Energy Bleed 4 | . . 1 . . . . 1 . . . . . . . 1 1 . . . . Interference 9 | . . . 2 . . . . . . . . . . . . 5 . . . 2 Short Circuit 1 | . . . . . . . . . . . . . . . . 1 . . . . Damage (minor) 1 | . . . . . . . . . . . . . . . . 1 . . . . Siege Activations . | . . . . . . . . . . . . . . . . . . . . . Robots Corrupted 17 | . . 1 . . . . . 2 . . . 1 1 4 3 3 2 . . . Combat Hostiles 13 | . . 1 . . . . . 1 . . . 1 1 2 2 3 2 . . . Parts Fried 29 | . 1 . 1 . . . . 8 . . . 2 1 6 3 2 3 2 . . Impact Corruptions 14 | . . . . . . . . 1 . . 1 . . . . . 9 3 . . Robots Melted . | . . . . . . . . . . . . . . . . . . . . . Combat Hostiles . | . . . . . . . . . . . . . . . . . . . . . Parts Melted 12 | . 1 . 1 . . . 1 1 . . . . . . 1 7 . . . . Heat Transferred 9696 | 148 544 . 1295 . . . 740 2274 494 259 74 459 . 100 611 2400 150 . . 148 Parts Sabotaged . | . . . . . . . . . . . . . . . . . . . . . Parts Stolen . | . . . . . . . . . . . . . . . . . . . . . Parts Stripped . | . . . . . . . . . . . . . . . . . . . . . Power Chain Reactions 19 | . 2 1 . . . . . 6 1 . . 2 . 1 3 2 1 . . . Missiles Intercepted . | . . . . . . . . . . . . . . . . . . . . . Alert | -11 -10 -10 -9 -9 -9 -8 -8 -8 -7 -7 -7 -7 -7 -7 -6 -6 -6 -6 -6 -6 ------- Run | Scr Mat Min Mat Min Exi Min Mat Sto Fac Was Fac Low Low Dat Pro Fac Low Low Zio Dee Peak Influence 1128 | 5 326 192 781 444 . 70 624 1128 770 269 385 . . . . 1031 . . . . Initial 373 | . 3 57 . 279 . . 27 263 373 269 48 . . . . 88 . . . . Average 385 | 1 75 53 344 282 . 14 287 812 492 261 267 . . . . 519 . . . . Maximum Alert Level 4 | . 1 . 3 2 . . 2 4 3 1 1 . . . . 3 . . . . Low Security (%) 35 | 100 89 100 37 22 . 100 25 1 . 3 19 . . . . 17 . . . . Level 1 28 | . 10 . 27 54 . . 51 17 10 96 80 . . . . 31 . . . . Level 2 11 | . . . 12 22 . . 23 1 85 . . . . . . 10 . . . . Level 3 23 | . . . 22 . . . . 74 3 . . . . . . 41 . . . . Level 4 . | . . . . . . . . 4 . . . . . . . . . . . . Level 5 . | . . . . . . . . . . . . . . . . . . . . . High Security . | . . . . . . . . . . . . . . . . . . . . . Max Security . | . . . . . . . . . . . . . . . . . . . . . Squads Dispatched 38 | . 4 . 9 . . . 2 6 4 . 1 . . . . 12 . . . . Investigation 15 | . 4 . 6 . . . . 2 . . . . . . . 3 . . . . Extermination 4 | . . . . . . . . . . . . . . . . 4 . . . . Reinforcement 13 | . . . 3 . . . 2 3 2 . 1 . . . . 2 . . . . Assault . | . . . . . . . . . . . . . . . . . . . . . Garrison 6 | . . . . . . . . 1 2 . . . . . . 3 . . . . Intercept . | . . . . . . . . . . . . . . . . . . . . . Construction Impeded 3 | . . . 1 . . . . 1 . . . . . . . 1 . . . . Haulers Reinforced 1 | . . . . . . . . . . . . . . . . 1 . . . . Stealth | -11 -10 -10 -9 -9 -9 -8 -8 -8 -7 -7 -7 -7 -7 -7 -6 -6 -6 -6 -6 -6 --------- Run | Scr Mat Min Mat Min Exi Min Mat Sto Fac Was Fac Low Low Dat Pro Fac Low Low Zio Dee Distress Signals 12 | . . . 1 . . . 4 2 1 . 1 . . . . 3 . . . . Communications Jammed . | . . . . . . . . . . . . . . . . . . . . . Distress Signals . | . . . . . . . . . . . . . . . . . . . . . Times Spotted 280 | . 23 15 48 11 . 3 32 40 13 1 9 11 6 3 14 36 9 . . 6 Peak Tracking Total 6 | . 4 3 5 4 . 2 6 5 5 1 3 4 3 3 4 5 4 . . 3 Tactical Retreats 16 | . 5 1 3 . . . 1 1 . . . 1 . . 2 1 1 . . . Traps | -11 -10 -10 -9 -9 -9 -8 -8 -8 -7 -7 -7 -7 -7 -7 -6 -6 -6 -6 -6 -6 ------- Run | Scr Mat Min Mat Min Exi Min Mat Sto Fac Was Fac Low Low Dat Pro Fac Low Low Zio Dee Traps Triggered 21 | . 2 . 5 . . . 3 7 1 . . . . . . 3 . . . . Indirectly 4 | . . . . . . . . 4 . . . . . . . . . . . . Trap Hack Attempts . | . . . . . . . . . . . . . . . . . . . . . Triggered . | . . . . . . . . . . . . . . . . . . . . . Disarmed . | . . . . . . . . . . . . . . . . . . . . . Reprogrammed . | . . . . . . . . . . . . . . . . . . . . . Reused . | . . . . . . . . . . . . . . . . . . . . . Traps Extracted . | . . . . . . . . . . . . . . . . . . . . . Installed 5 | . . 5 . . . . . . . . . . . . . . . . . . Triggered 3 | . . . . . . . . 1 . . . . 2 . . . . . . . Machines | -11 -10 -10 -9 -9 -9 -8 -8 -8 -7 -7 -7 -7 -7 -7 -6 -6 -6 -6 -6 -6 ---------- Run | Scr Mat Min Mat Min Exi Min Mat Sto Fac Was Fac Low Low Dat Pro Fac Low Low Zio Dee Machines Disabled 28 | . 3 2 . . . . 4 8 2 . . . . 1 . 7 . . . 1 Max in Single Turn 3 | . 3 1 . . . . 1 2 1 . . . . . . 2 . . . . Garrison Access 1 | . . . . . . . . 1 . . . . . . . . . . . . Machines Sabotaged . | . . . . . . . . . . . . . . . . . . . . . Garrisons Compromised . | . . . . . . . . . . . . . . . . . . . . . Overloaded Fab Kills . | . . . . . . . . . . . . . . . . . . . . . Fab Network Shutdowns 1 | . . . . . . . . . . . . . . . . 1 . . . . Hacking | -11 -10 -10 -9 -9 -9 -8 -8 -8 -7 -7 -7 -7 -7 -7 -6 -6 -6 -6 -6 -6 --------- Run | Scr Mat Min Mat Min Exi Min Mat Sto Fac Was Fac Low Low Dat Pro Fac Low Low Zio Dee Machines Accessed 39 | . 6 . 6 . 1 . 3 7 2 . 2 . 1 4 . 6 . . 1 . Terminals 21 | . 5 . 3 . . . 3 4 2 . 1 . . . . 3 . . . . Fabricators 2 | . . . . . . . . . . . 1 . . . . 1 . . . . Repair Stations 2 | . . . 1 . . . . . . . . . . . . 1 . . . . Recycling Units 5 | . 1 . 2 . . . . 2 . . . . . . . . . . . . Scanalyzers 1 | . . . . . . . . . . . . . . . . 1 . . . . Garrison Access 1 | . . . . . . . . 1 . . . . . . . . . . . . Total Hacks 133 | . 22 . 14 . 1 . 10 16 4 . 7 . 1 28 . 24 . . 6 . Successful 84 | . 11 . 9 . 1 . 5 6 2 . 5 . 1 28 . 10 . . 6 . Failed 49 | . 11 . 5 . . . 5 10 2 . 2 . . . . 14 . . . . Catastrophic 6 | . 1 . . . . . . . 1 . . . . . . 4 . . . . Database Lockouts . | . . . . . . . . . . . . . . . . . . . . . Manual 56 | . 11 . 10 . 2 . 9 8 3 . 4 . . . . 9 . . . . Terminals 72 | . 21 . 10 . . . 10 11 4 . 4 . . . . 12 . . . . Fabricators 7 | . . . . . . . . . . . 3 . . . . 4 . . . . Repair Stations 4 | . . . 2 . . . . . . . . . . . . 2 . . . . Recycling Units 5 | . 1 . 2 . . . . 2 . . . . . . . . . . . . Scanalyzers 6 | . . . . . . . . . . . . . . . . 6 . . . . Garrison Access 3 | . . . . . . . . 3 . . . . . . . . . . . . Terminal Hacks 54 | . 8 . 1 . 1 . 2 2 . . 2 . 1 28 . 3 . . 6 . Record 12 | . . . . . 1 . . . . . . . . 11 . . . . . . Part Schematic 14 | . . . . . . . . . . . 1 . . 7 . . . . 6 . Robot Schematic 7 | . . . . . . . . . . . . . . 7 . . . . . . Prototype ID Bank 4 | . . . . . . . . . . . . . . 3 . 1 . . . . Open Door 2 | . . . . . . . . 1 . . . . 1 . . . . . . . Branch Access Points 5 | . 2 . . . . . 1 . . . 1 . . . . 1 . . . . Machine Index 1 | . . . . . . . . . . . . . . . . 1 . . . . Recycling Unit Index 1 | . . . 1 . . . . . . . . . . . . . . . . . Alert Level 3 | . 2 . . . . . 1 . . . . . . . . . . . . . Unreport Threat 4 | . 3 . . . . . . 1 . . . . . . . . . . . . Zone Layout 1 | . 1 . . . . . . . . . . . . . . . . . . . Fabricator Hacks 4 | . . . . . . . . . . . 2 . . . . 2 . . . . Load Schematic 2 | . . . . . . . . . . . 1 . . . . 1 . . . . Build 2 | . . . . . . . . . . . 1 . . . . 1 . . . . Repair Station Hacks 4 | . . . 2 . . . . . . . . . . . . 2 . . . . Scan Component 2 | . . . 1 . . . . . . . . . . . . 1 . . . . Repair 2 | . . . 1 . . . . . . . . . . . . 1 . . . . Recycling Unit Hacks . | . . . . . . . . . . . . . . . . . . . . . Scanalyzer 1 | . . . . . . . . . . . . . . . . 1 . . . . Insert Component 1 | . . . . . . . . . . . . . . . . 1 . . . . Garrison Access Hacks 1 | . . . . . . . . 1 . . . . . . . . . . . . Seal Access 1 | . . . . . . . . 1 . . . . . . . . . . . . Unauthorized Hacks 20 | . 3 . 6 . . . 3 3 2 . 1 . . . . 2 . . . . Terminals 15 | . 2 . 4 . . . 3 1 2 . 1 . . . . 2 . . . . Track 1 | . . . . . . . 1 . . . . . . . . . . . . . Botnet 10 | . 1 . 2 . . . 1 1 2 . 1 . . . . 2 . . . . Operators 4 | . 1 . 2 . . . 1 . . . . . . . . . . . . . Fabricators . | . . . . . . . . . . . . . . . . . . . . . Repair Stations . | . . . . . . . . . . . . . . . . . . . . . Recycling Units 5 | . 1 . 2 . . . . 2 . . . . . . . . . . . . Tunnel 5 | . 1 . 2 . . . . 2 . . . . . . . . . . . . Scanalyzers . | . . . . . . . . . . . . . . . . . . . . . Garrison Access . | . . . . . . . . . . . . . . . . . . . . . Data Cores Recovered . | . . . . . . . . . . . . . . . . . . . . . Used . | . . . . . . . . . . . . . . . . . . . . . Hacking Detections 22 | . 3 . 3 . . . 3 4 2 . 2 . . . . 5 . . . . Full Trace Events 6 | . 2 . 2 . . . . . . . . . . . . 2 . . . . Feedback Events . | . . . . . . . . . . . . . . . . . . . . . Feedback Blocked . | . . . . . . . . . . . . . . . . . . . . . Robot Schematics Acquired 7 | . . . . . . . . . . . . . . 7 . . . . . . Robots Built . | . . . . . . . . . . . . . . . . . . . . . Matter . | . . . . . . . . . . . . . . . . . . . . . Time . | . . . . . . . . . . . . . . . . . . . . . Total Robot Build Rating . | . . . . . . . . . . . . . . . . . . . . . Part Schematics Acquired 14 | . . . . . . . . . . . 1 . . 7 . . . . 6 . Parts Built 3 | . . . . . . . . . . . 2 . . . . 1 . . . . Matter 453 | . . . . . . . . . . . 168 . . . . 285 . . . . Time 160 | . . . . . . . . . . . 84 . . . . 76 . . . . Total Part Build Rating 13 | . . . . . . . . . . . 8 . . . . 5 . . . . Parts Repaired 2 | . . . 1 . . . . . . . . . . . . 1 . . . . Time 64 | . . . 26 . . . . . . . . . . . . 38 . . . . Parts Recycled . | . . . . . . . . . . . . . . . . . . . . . Recycled Matter . | . . . . . . . . . . . . . . . . . . . . . Retrieved Matter . | . . . . . . . . . . . . . . . . . . . . . Retrieved Components . | . . . . . . . . . . . . . . . . . . . . . Parts Scanalyzed 1 | . . . . . . . . . . . . . . . . 1 . . . . Part Schematics Acquired . | . . . . . . . . . . . . . . . . . . . . . Parts Damaged . | . . . . . . . . . . . . . . . . . . . . . Bothacking | -11 -10 -10 -9 -9 -9 -8 -8 -8 -7 -7 -7 -7 -7 -7 -6 -6 -6 -6 -6 -6 ------------ Run | Scr Mat Min Mat Min Exi Min Mat Sto Fac Was Fac Low Low Dat Pro Fac Low Low Zio Dee Used RIF Installer . | . . . . . . . . . . . . . . . . . . . . . Robots Hacked . | . . . . . . . . . . . . . . . . . . . . . Non-combat . | . . . . . . . . . . . . . . . . . . . . . Combat . | . . . . . . . . . . . . . . . . . . . . . Robot Hacks Applied . | . . . . . . . . . . . . . . . . . . . . . Relay Couplers Released . | . . . . . . . . . . . . . . . . . . . . . Robots Rewired . | . . . . . . . . . . . . . . . . . . . . . Allies Hacked . | . . . . . . . . . . . . . . . . . . . . . Hacks Repelled . | . . . . . . . . . . . . . . . . . . . . . Allies | -11 -10 -10 -9 -9 -9 -8 -8 -8 -7 -7 -7 -7 -7 -7 -6 -6 -6 -6 -6 -6 -------- Run | Scr Mat Min Mat Min Exi Min Mat Sto Fac Was Fac Low Low Dat Pro Fac Low Low Zio Dee Total Allies 39 | . . 1 . . . . . 12 . 20 . . . . . . . . 6 . Largest Group 26 | . . 1 . . . . . 11 10 26 25 21 14 14 6 2 . . 6 5 Highest-Rated Group 641 | . . 31 . . . . . 267 173 641 625 569 409 409 191 59 . . 147 127 Highest-Rated Ally 99 | . . 31 . . . . . 99 29 35 35 35 33 33 33 33 . . 37 37 Total Orders 2 | . . . . . . . . 2 . . . . . . . . . . . . EXPLORE 2 | . . . . . . . . 2 . . . . . . . . . . . . Ally Attacks 357 | . . . . . . . . 50 98 13 47 48 24 54 2 . . . . 21 Total Damage 6358 | . . . . . . . . 1804 1258 174 751 819 385 536 26 . . . . 605 Kills 68 | . . . . . . . . 24 14 1 10 8 3 2 . . . . . 6 Allies Corrupted 4 | . . . . . . . . . . . . . . 2 1 1 . . . . Allies Melted . | . . . . . . . . . . . . . . . . . . . . . Intel | -11 -10 -10 -9 -9 -9 -8 -8 -8 -7 -7 -7 -7 -7 -7 -6 -6 -6 -6 -6 -6 ------- Run | Scr Mat Min Mat Min Exi Min Mat Sto Fac Was Fac Low Low Dat Pro Fac Low Low Zio Dee Robot Analysis Total . | . . . . . . . . . . . . . . . . . . . . . Derelict Logs Recovered 5 | . . 1 . 1 . . . . . . . . . . 2 . . . 1 . Drone Launches 2 | . . . . . . . . 2 . . . . . . . . . . . . Drone Recoveries . | . . . . . . . . . . . . . . . . . . . . . Exploration | -11 -10 -10 -9 -9 -9 -8 -8 -8 -7 -7 -7 -7 -7 -7 -6 -6 -6 -6 -6 -6 ------------- Run | Scr Mat Min Mat Min Exi Min Mat Sto Fac Was Fac Low Low Dat Pro Fac Low Low Zio Dee Turns Passed 23372 | 116 1497 1219 2016 1034 801 131 785 2403 723 414 586 760 570 538 1113 1774 847 553 4042 1450 Spaces Moved 11585 | 52 749 651 818 490 400 59 295 534 420 257 332 487 398 371 638 678 478 323 2499 656 Core 1512 | 2 . . . . . . . . . . . . . 70 . . . . 1439 1 Treads 6571 | 50 670 . 740 490 400 59 295 534 102 1 8 . . . 179 648 478 323 1060 534 Legs 127 | . . . . . . . . . . . . . . . . 6 . . . 121 Wheels 3363 | . 79 651 66 . . . . . 318 256 324 487 398 301 459 24 . . . . Hover 12 | . . . 12 . . . . . . . . . . . . . . . . . Flight . | . . . . . . . . . . . . . . . . . . . . . Fastest Speed 50 | 50 150 110 150 200 200 200 180 180 140 140 140 140 140 50 140 170 165 165 50 145 Average Speed 158 | 155 173 145 193 200 200 200 180 180 153 140 143 140 140 119 151 184 165 165 125 177 Slowest Speed 2450 | 160 220 150 290 200 200 200 240 200 200 280 280 140 140 140 280 240 165 165 185 2450 Overloaded Moves . | . . . . . . . . . . . . . . . . . . . . . Propulsion Burnouts . | . . . . . . . . . . . . . . . . . . . . . Robots Hopped . | . . . . . . . . . . . . . . . . . . . . . Cave-ins Triggered . | . . . . . . . . . . . . . . . . . . . . . Exploration Rate (%) 60 | 4 87 99 74 92 84 17 38 92 15 96 9 64 60 77 81 17 56 59 83 63 Regions Visited 20 Branch Regions 13 Pre-discovered Areas 9 | . 1 1 2 . . . . 2 . . . . . 1 . . . . 2 . Known Exits Taken 11 | . 1 . . . . . 1 . . . 1 1 1 1 1 1 1 1 1 . Unknown Exits Taken 7 | 1 . 1 1 1 1 1 . 1 . . . . . . . . . . . . Scrap Searched 14 | . . 1 . 3 . . . . . . . 2 3 . 1 . 1 1 2 . Spaces Dug 39 | . . . . . . . 1 . 1 . . 7 . . . 11 1 4 11 3 Terrain Destroyed 331 | . 71 20 37 . . . 18 46 4 . . 8 . . 6 91 3 4 11 12 Melee 22 | . . . . . . . 1 . 1 . . . . . . 1 1 4 11 3 Projectile 22 | . . . . . . . 1 . . . . . . . . 12 . . . 9 AOE 287 | . 71 20 37 . . . 16 46 3 . . 8 . . 6 78 2 . . . Terrain Rammed . | . . . . . . . . . . . . . . . . . . . . . Walls Destroyed . | . . . . . . . . . . . . . . . . . . . . . Machines Disabled . | . . . . . . . . . . . . . . . . . . . . . Actions | -11 -10 -10 -9 -9 -9 -8 -8 -8 -7 -7 -7 -7 -7 -7 -6 -6 -6 -6 -6 -6 --------- Run | Scr Mat Min Mat Min Exi Min Mat Sto Fac Was Fac Low Low Dat Pro Fac Low Low Zio Dee Total 15304 | 74 868 857 1063 519 401 68 427 1819 474 297 437 542 405 469 726 1041 510 331 3079 897 Wait 2137 | 6 37 150 67 10 2 7 23 1117 25 10 87 30 3 15 16 149 3 1 286 93 Move 11566 | 51 748 650 817 489 399 58 294 533 420 256 331 486 397 370 637 677 477 322 2498 656 Hop . | . . . . . . . . . . . . . . . . . . . . . Pick Up 195 | 6 20 6 20 2 . . 8 17 . 4 2 4 . 29 4 11 4 . 45 13 Fast Attach 133 | 6 1 . 17 . . . 6 17 2 7 4 . . 6 7 30 1 1 12 16 Attach 62 | . 2 7 6 . . . 6 2 2 . . . . 4 2 8 3 . 8 12 Detach 23 | . . 1 3 . . . . 4 2 . . . . . . 2 . . 4 7 Swap 93 | . 7 3 11 . . . 6 15 3 . 4 1 . 1 10 17 2 . 3 10 Drop 271 | . 9 . 26 2 . . 12 26 2 11 6 4 . 35 6 28 1 1 49 53 Fire 599 | 5 42 35 96 16 . 3 69 80 16 9 2 17 5 8 44 118 14 . . 20 Melee 213 | . . . . . . . 3 5 1 . . . . 1 . 1 5 6 174 17 Ram 2 | . . . . . . . . . 1 . 1 . . . . . . . . . Kick . | . . . . . . . . . . . . . . . . . . . . . Crush 2 | . 2 . . . . . . . . . . . . . . . . . . . Escape Stasis 2 | . . . . . . . . 2 . . . . . . . . . . . . Rewire 1 | . . . . . . . . 1 . . . . . . . . . . . . Trap 5 | . . 5 . . . . . . . . . . . . . . . . . . Miscellaneous . | . . . . . . . . . . . . . . . . . . . . . Route ------- -11/Scrapyard -10/Materials (discovered 3 exits: *Mat x2 / *Min) -10/Mines (discovered 2 exits: *Mat x2) -9/Materials (discovered 3 exits: *Mat / [*Min x2]) -9/Mines (discovered 3 exits: *Mat x2 / *Exi) -9/Exiles -8/Mines -8/Materials -8/Storage -7/Factory -7/Waste -7/Factory (discovered 3 exits: *Fac / *Low x2) -7/Lower Caves -7/Lower Caves -7/Data Miner -6/Proximity Caves -6/Factory (discovered 3 exits: [*Fac] / *Low x2) -6/Lower Caves -6/Lower Caves -6/Zion (discovered 2 exits: *Dee / [*Pro]) -6/Deep Caves (discovered 1 exit: [*Pro]) History --------- Turn | Location | Event 9 | -11/Scrapyard | Discovered new exit (range 15) 117 | -11/Scrapyard | Entered Materials 179 | -10/Materials | Identified exit to Mines 313 | -10/Materials | Build established: Mutant 669 | -10/Materials | Build established: Hauler-Mutant 801 | -10/Materials | Discovered new exit (range 4) 1027 | -10/Materials | Discovered new exit (range 15) 1614 | -10/Materials | Entered Mines 1617 | -10/Mines | Core integrity fell below 50% 1816 | -10/Mines | Assembled infested the area 1821 | -10/Mines | Assisted by a Guerilla fighting off Assembled 1970 | -10/Mines | Lost 4 parts (1p1n2w) 2105 | -10/Mines | Found a hidden stash of uninstalled traps 2367 | -10/Mines | Discovered new exit (range 8) 2557 | -10/Mines | Discovered new exit (range 12) 2566 | -10/Mines | Received a Mining Laser from a helpful Derelict 2833 | -10/Mines | Entered Materials 2833 | -9/Materials | Evolved 2 slots: Utility x1, Weapon x1 3259 | -9/Materials | Discovered new exit (range 15) 3468 | -9/Materials | Build established: Scavenger-Tank 4183 | -9/Materials | Destroyed 9 combat bots 4245 | -9/Materials | Discovered new exit (range 13) 4287 | -9/Materials | Build established: Hauler-Tank 4546 | -9/Materials | Repaired Grenade Launcher 4604 | -9/Materials | Discovered new exit (range 13) 4849 | -9/Materials | Entered Mines 5187 | -9/Mines | Learned Materials stockpile data 5431 | -9/Mines | Found a damaged Exp. Sensor Array with a note attached 5435 | -9/Mines | Found Prototype Device 5532 | -9/Mines | Discovered new exit (range 8) 5545 | -9/Mines | Received a Rocket Launcher from a helpful Derelict 5704 | -9/Mines | Discovered new exit (range 7) 5713 | -9/Mines | Core integrity fell below 50% 5875 | -9/Mines | Deemed a non-threat by the Exiles lab entrance 5875 | -9/Mines | Discovered new exit (range 5) 5883 | -9/Mines | Entered Exiles 5883 | -9/Exiles | Found Exiles lab abandoned 6654 | -9/Exiles | Discovered new exit (range 14) 6684 | -9/Exiles | Entered Mines 6779 | -8/Mines | Discovered new exit (range 12) 6815 | -8/Mines | Entered Materials 6815 | -8/Materials | Evolved 2 slots: Propulsion x1, Utility x1 7068 | -8/Materials | Identified exit to Storage 7508 | -8/Materials | Destroyed 7 combat bots 7600 | -8/Materials | Entered Storage 7883 | -8/Storage | Met 01-MTF 8042 | -8/Storage | Garrison activated, responded to threat 8337 | -8/Storage | Build established: Scavenger-Mutant 8698 | -8/Storage | Assisted by bots powering up and referring to "LRC-V3" 8738 | -8/Storage | Discovered new exit (range 16) 8890 | -8/Storage | Destroyed 01-MTF 8900 | -8/Storage | Found 01-MTF's Shockpuncher 8937 | -8/Storage | Found Prototype Device 8973 | -8/Storage | Identified Exp. Sensor Array 8975 | -8/Storage | Identified 01-MTF's Autohacker 9325 | -8/Storage | Build established: Commander-Tank 10003 | -8/Storage | Entered Factory 10003 | -7/Factory | Accompanied by 10 allies 10003 | -7/Factory | Evolved 2 slots: Utility x2 10584 | -7/Factory | Garrison activated, responded to threat 10726 | -7/Factory | Sucked down chute 10726 | -7/Factory | Entered Waste 10727 | -7/Waste | Joined by Warlord forces that had cleared the area 10733 | -7/Waste | Found Prototype Processor 10733 | -7/Waste | Identified Exp. Signal Interpreter 10770 | -7/Waste | A Compactor rumbled back to life 10773 | -7/Waste | Spotted C-40 Crusher 10773 | -7/Waste | Allies destroyed C-40 Crusher 10816 | -7/Waste | Found Damper Plating 10840 | -7/Waste | 6 allies followed down the chute 11015 | -7/Waste | Build established: Hauler-Mutant 11103 | -7/Waste | Discovered new exit (range 12) 11125 | -7/Waste | Found Damper Plating 11129 | -7/Waste | Identified exit to Factory 11140 | -7/Waste | Entered Factory 11140 | -7/Factory | Accompanied by 25 allies 11352 | -7/Factory | Identified exit to Lower Caves 11515 | -7/Factory | Fabricated Spear (x2) 11620 | -7/Factory | Discovered new exit (range 15) 11640 | -7/Factory | Identified exit to Factory 11726 | -7/Factory | Entered Lower Caves 11726 | -7/Lower Caves | Accompanied by 21 allies 12435 | -7/Lower Caves | Discovered new exit (range 15) 12463 | -7/Lower Caves | Identified exit to Lower Caves 12486 | -7/Lower Caves | Entered another Lower Caves area 12486 | -7/Lower Caves | Accompanied by 14 allies 12577 | -7/Lower Caves | Attracted the attention of an 0b10 checkpoint 13036 | -7/Lower Caves | Discovered new exit (range 4) 13043 | -7/Lower Caves | Identified exit to Data Miner 13056 | -7/Lower Caves | Entered Data Miner 13056 | -7/Data Miner | Accompanied by 14 allies 13056 | -7/Data Miner | Discovered new exit (range 6) 13083 | -7/Data Miner | Met Data Miner 13107 | -7/Data Miner | Learned location of Section 7 (-3) 13107 | -7/Data Miner | Acquired the access code to Warlord's prototype stash 13135 | -7/Data Miner | Received God Mode back door access code from Data Miner 13307 | -7/Data Miner | Destroyed Data Miner 13310 | -7/Data Miner | Found Prototype Hackware 13313 | -7/Data Miner | Data Conduit disabled 13586 | -7/Data Miner | Identified exit to Proximity Caves 13594 | -7/Data Miner | Entered Proximity Caves 13594 | -6/Proximity Caves | Accompanied by 6 allies 13923 | -6/Proximity Caves | System corruption reached 10% 13951 | -6/Proximity Caves | Spotted B-75 Beast 13953 | -6/Proximity Caves | Lost 3 parts (1n2u) 14031 | -6/Proximity Caves | Learned Factory terminal intel 14167 | -6/Proximity Caves | Learned 8 Factory zone layouts 14327 | -6/Proximity Caves | Destroyed B-75 Beast 14611 | -6/Proximity Caves | Discovered exit to Factory (range 14) 14707 | -6/Proximity Caves | Entered Factory 14707 | -6/Factory | Accompanied by 2 allies 14707 | -6/Factory | Evolved 2 slots: Utility x2 14709 | -6/Factory | Loaded intel: 20 terminal locations 14862 | -6/Factory | Repaired Imp. Light Armor Plating 15039 | -6/Factory | Discovered new exit (range 10) 15538 | -6/Factory | Fabricated Exp. Sensor Array (x1) 15566 | -6/Factory | Found Prototype Processor 15566 | -6/Factory | Identified Exp. Targeting Computer 15569 | -6/Factory | Found Exp. Targeting Computer 15573 | -6/Factory | Found Exp. Targeting Computer 15669 | -6/Factory | Identified exit to Lower Caves 15707 | -6/Factory | Local fabrication network quarantined 16099 | -6/Factory | Garrison activated, responded to threat 16481 | -6/Factory | Entered Lower Caves 16485 | -6/Lower Caves | System corruption reached 10% 16523 | -6/Lower Caves | Lost 4 parts (1u3w) 16736 | -6/Lower Caves | Ambushed by wild Derelicts 17314 | -6/Lower Caves | Discovered new exit (range 7) 17315 | -6/Lower Caves | Encountered a Warlord checkpoint 17324 | -6/Lower Caves | Identified exit to Lower Caves 17328 | -6/Lower Caves | Entered another Lower Caves area 17856 | -6/Lower Caves | Discovered new exit (range 12) 17877 | -6/Lower Caves | Identified exit to Zion 17881 | -6/Lower Caves | Entered Zion 18039 | -6/Zion | Discovered new exit (range 11) 18114 | -6/Zion | System corruption cleaned by Quarantine Array 18375 | -6/Zion | Found Unknown Piercing Weapon 18441 | -6/Zion | Gained Derelict followers 18741 | -6/Zion | Learned location of Warlord (-4) 19070 | -6/Zion | Learned location of 1 exit from Proximity Caves 19137 | -6/Zion | Visited the Megawrench Repair Shop 19266 | -6/Zion | Gained Derelict followers 19364 | -6/Zion | Found Prototype Device 19442 | -6/Zion | Build established: Hauler-Skirmisher 19584 | -6/Zion | Megawrench repaired 9 parts 19640 | -6/Zion | Identified Mobile Refinery Mk. CCLXVII 19651 | -6/Zion | Identified CR-A16's Pointy Stick 19931 | -6/Zion | Build established: Mutant 21678 | -6/Zion | Discovered new exit (range 3) 21907 | -6/Zion | Identified exit to Deep Caves 21923 | -6/Zion | Entered Deep Caves 21923 | -6/Deep Caves | Accompanied by 5 allies 22017 | -6/Deep Caves | Build established: Hauler-Mutant 22158 | -6/Deep Caves | Z-Facility disabled 22239 | -6/Deep Caves | Attacked by Z-Imprinter 22271 | -6/Deep Caves | Core integrity fell below 50% 22309 | -6/Deep Caves | Core integrity fell below 20% 22334 | -6/Deep Caves | Destroyed Z-Imprinter 22350 | -6/Deep Caves | Found Prototype Device 22350 | -6/Deep Caves | Identified Zio. Metafield Generator 22352 | -6/Deep Caves | Lost 8 parts (1p1n1u5w) 23016 | -6/Deep Caves | Discovered new exit (range 9) 23353 | -6/Deep Caves | Spotted as-30364 23373 | -6/Deep Caves | Destroyed by as-30364 with Assembled Focal Cannon Last Messages --------------- 23135_ Dropped Hvy. EM Shotgun. 23138_ Extracted 66 matter. 23151_ Dropped Great Maul. 23152_ Dropped Zio. Laser-M. 23154_ Dropped Hcp. Storage Unit. 23158_ Acquired Damper Plating. 23161_ Dropped Damper Plating. 23165_ Extracted 9 energy. 23174_ Acquired Imp. Heavy Armor Plating. 23178_ Extracted 20 matter. 23191_ Acquired Hvy. EM Shotgun. 23209_ Dropped Prototype Hover Unit. 23211_ Dropped CR-A16's Pointy Stick. 23211_ Dropped Prototype Hackware. 23212_ Dropped Power Sword. 23212_ Dropped Hcp. Storage Unit. 23222_ Discarded Mak. Hacking Suite. 23222_ Acquired Damper Plating. 23278_ Acquired Imp. Particle Charger. 23355_ as-30364: "DSI9AT1D G8OHIBQ29FWG 26R186 QD12WHW8W33 TDK1 81FTS" Map ----- +----------------------------------------------------+ | ???????a???????????????????????## === ##?? | | ?????aaa???????????????????????# != /[* ##? | | ????aaaa???????????????????????# #### !! ## | | ???aaaaa???????????????????????#?????## ! !=!! | | ???aaaaa?????????????????????????????## ===! | | ???aaaaa????????????????? ????###### ### !!! | | ???aaaaa?????????????? ???## !"# ### | | ???????A???????????? ] ???# !### ##?# | | ?????????????????? = #??# #? | | ??????????????? ] #??# # ### | | ????????????? ! ! #??# ## ##< # | | ??????????? !! g #??# ### ###### | | ??????????? = ! ! ##?# #### #?### | | ?????????? =! #?# ### | | ?????????? =! #?# ### | | ????????? ! #?######## ### | | ????????? = ! ########## ## | | ????????? | | ????????""" ### | | ????????" ! #?## | | ?????????" #############??## | | ????????" #???????????????### | | ?????????" ##?????????????????? | | ????????" #G# #??????????????????? | | ????????" #### ## ## ##??????????????????? | | ????????""" ???????# ?#@####???????????????????? | | ???????????????????#??# #??????????????????????? | | ???????????????????????#???????????????????????? | | | | | | | | | | | | | | | | | | | | | | | | | | | | | | | | | | | | | | | | | | | | | +----------------------------------------------------+ Best States ------------- Heat Dissipation 64 Energy Generation 27 Energy Capacity 925 Matter Stores 300 Matter Capacity 550 Sight Range 16 Robot Scan Range 30 Terrain Scan Density 110 ECM Strength 3 Armor Coverage 1800 Resistance: TH 30 Resistance: EM 90 Evasion (%) 50 Targeting Accuracy 24 Recoil Reduction 3 Offensive Hacking 11 Item Schematics ----------------- Spear | -7/Factory | Hacked Combat Drone Bay | -7/Data Miner | Free Lgt. Regenerative Plating | -7/Data Miner | Free Exp. Cesium-ion Thruster | -7/Data Miner | Free Triangulator | -7/Data Miner | Free Exp. Flexi-carbon Leg | -7/Data Miner | Free Exp. Sensor Array | -7/Data Miner | Free Plasma Sword | -7/Data Miner | Free Riot Gun | -6/Zion | Free Hvy. Riot Gun | -6/Zion | Free Battle Rifle | -6/Zion | Free Battle Cannon | -6/Zion | Free Slug Cannon | -6/Zion | Free Flamer | -6/Zion | Free Robot Schematics ------------------ S-27 Virus | -7/Data Miner | Free G-50 Soldier | -7/Data Miner | Free G-67 Veteran | -7/Data Miner | Free X-72 Disruptor | -7/Data Miner | Free P-70 Sage | -7/Data Miner | Free I-36 Angel | -7/Data Miner | Free I-47 Archangel | -7/Data Miner | Free Fabricated ------------ Spear | x2 | -7/Factory Exp. Sensor Array | x1 | -6/Factory Alien Tech Used ----------------- None Achievements -------------- None Challenges ------------ None Game ------ Seed TacticalImprinterWell Manual? 0 Play Time 03:03:06 Cumulative 155.6 hours Start 2021.06.30 @ 19:18:22 End 2021.07.01 @ 13:06:51 Sessions 5 Manual Loads 0 Difficulty Rogue Special Mode None Game No. 51 Rogue 51 Adventurer 0 Explorer 0 Win Type - Total 2 Types 2/0/0/0/0/0/0/0/0 Lore% 66 Gallery% 75 Achievement% 60 Wizard Run 0 Options --------- ASCII 0 Keyboard 0 Movement Numpad Keybinds 0 Fullscreen 1 Font 18/SmallcapsGlow Map View 76x50 Tactical HUD 1 Map Filters NONE Filters NONE Steam 1 RUN: b553c40b-f8f0-40a7-9eb7-275714443045